[Event "Live Chess"]
[Site "Chess.com"]
[Date "2024.06.01"]
[Round "-"]
[White "educatedlad"]
[Black "Zhevzh1k7"]
[Result "1-0"]
[WhiteElo "1713"]
[BlackElo "1105"]
[TimeControl "300"]
[EndTime "14:12:44 PDT"]
[Termination "educatedlad won by resignation"]

1. d4 {[%clk 0:04:59.3]} 1... Nf6 {[%clk 0:04:57.9]} 2. Nf3 {[%clk 0:04:58.5]}
2... d5 {[%clk 0:04:55.2]} 3. c4 {[%clk 0:04:57.4]} 3... e6 {[%clk 0:04:53.9]}
4. e3 {[%clk 0:04:57.2]} 4... c6 {[%clk 0:04:52.9]} 5. Nc3 {[%clk 0:04:57.1]}
5... Nbd7 {[%clk 0:04:52.3]} 6. Be2 {[%clk 0:04:54.4]} 6... Bb4 {[%clk
0:04:50.1]} 7. Qc2 {[%clk 0:04:52.7]} 7... O-O {[%clk 0:04:47.9]} 8. a3 {[%clk
0:04:51.8]} 8... Bxc3+ {[%clk 0:04:45.8]} 9. bxc3 {[%clk 0:04:50.8]} 9... dxc4
{[%clk 0:04:45.1]} 10. Bxc4 {[%clk 0:04:49.7]} 10... Nb6 {[%clk 0:04:43]} 11.
Bd3 {[%clk 0:04:48.8]} 11... Bd7 {[%clk 0:04:41.6]} 12. e4 {[%clk 0:04:48.3]}
12... h6 {[%clk 0:04:39.1]} 13. e5 {[%clk 0:04:47.6]} 13... Nfd5 {[%clk
0:04:38]} 14. O-O {[%clk 0:04:31.3]} 14... f6 {[%clk 0:04:30.1]} 15. exf6 {[%clk
0:04:29]} 15... Rxf6 {[%clk 0:04:29.7]} 16. Ne5 {[%clk 0:04:27.5]} 16... Qe7
{[%clk 0:04:21.3]} 17. Ng6 {[%clk 0:04:25.1]} 17... Qf7 {[%clk 0:04:17.8]} 18.
Ne5 {[%clk 0:04:24.2]} 18... Qe7 {[%clk 0:04:15.4]} 19. Nxd7 {[%clk 0:04:22.9]}
19... Nxd7 {[%clk 0:04:13.4]} 20. c4 {[%clk 0:04:19.7]} 20... N5b6 {[%clk
0:04:11.8]} 21. a4 {[%clk 0:04:15]} 21... c5 {[%clk 0:04:09.5]} 22. Ba3 {[%clk
0:04:12.3]} 22... Rc8 {[%clk 0:04:05.2]} 23. dxc5 {[%clk 0:04:10.8]} 23... Nxc5
{[%clk 0:04:03.2]} 24. Bh7+ {[%clk 0:04:05.7]} 24... Kh8 {[%clk 0:03:57.9]} 25.
a5 {[%clk 0:04:04.5]} 25... Nbd7 {[%clk 0:03:44]} 26. Rad1 {[%clk 0:04:00.4]}
26... g5 {[%clk 0:03:34.9]} 27. Rfe1 {[%clk 0:03:53.9]} 27... Qxh7 {[%clk
0:03:28]} 28. Qc3 {[%clk 0:03:50.5]} 28... Rf8 {[%clk 0:03:15.6]} 29. Rxd7
{[%clk 0:03:41.6]} 29... Nxd7 {[%clk 0:03:13.4]} 30. Bxf8 {[%clk 0:03:40.4]}
30... Nxf8 {[%clk 0:03:10.7]} 31. Qxf6+ {[%clk 0:03:38.7]} 31... Qg7 {[%clk
0:03:08.3]} 32. Qxg7+ {[%clk 0:03:35.4]} 32... Kxg7 {[%clk 0:03:05.8]} 33. Rd1
{[%clk 0:03:35.3]} 33... Kf6 {[%clk 0:03:02.6]} 34. Rd8 {[%clk 0:03:32.9]} 34...
Ng6 {[%clk 0:03:00.3]} 35. Rd7 {[%clk 0:03:31.5]} 35... Ne5 {[%clk 0:02:58.4]}
36. Rxb7 {[%clk 0:03:30.5]} 36... Nxc4 {[%clk 0:02:57.3]} 37. Rxa7 {[%clk
0:03:29.6]} 37... Ke5 {[%clk 0:02:56.5]} 38. a6 {[%clk 0:03:27.6]} 38... Nb6
{[%clk 0:02:55]} 39. Rb7 {[%clk 0:03:26.9]} 39... Na8 {[%clk 0:02:52.7]} 40. a7
{[%clk 0:03:25.8]} 40... Kd6 {[%clk 0:02:50.7]} 41. Rb8 {[%clk 0:03:24.7]} 41...
Nc7 {[%clk 0:02:47.1]} 42. a8=Q {[%clk 0:03:23.5]} 42... Nxa8 {[%clk 0:02:46.2]}
43. Rxa8 {[%clk 0:03:23.4]} 1-0

[Event "Live Chess"]
[Site "Chess.com"]
[Date "2024.06.01"]
[Round "-"]
[White "MagnersCarlsberg2870"]
[Black "Silverback7829"]
[Result "1-0"]
[WhiteElo "1772"]
[BlackElo "954"]
[TimeControl "300"]
[EndTime "14:12:45 PDT"]
[Termination "MagnersCarlsberg2870 won by checkmate"]

1. d4 {[%clk 0:04:56.8]} 1... d5 {[%clk 0:04:57.6]} 2. e3 {[%clk 0:04:55.9]}
2... e6 {[%clk 0:04:54.7]} 3. Bd3 {[%clk 0:04:54.9]} 3... Nc6 {[%clk 0:04:51.1]}
4. Nd2 {[%clk 0:04:52.8]} 4... Bb4 {[%clk 0:04:46.6]} 5. c3 {[%clk 0:04:51.6]}
5... Ba5 {[%clk 0:04:42.7]} 6. Ngf3 {[%clk 0:04:50.7]} 6... Nf6 {[%clk 0:04:38]}
7. Qe2 {[%clk 0:04:49.6]} 7... Bd7 {[%clk 0:04:33.7]} 8. O-O {[%clk 0:04:48]}
8... Qe7 {[%clk 0:04:29.2]} 9. e4 {[%clk 0:04:46.2]} 9... dxe4 {[%clk
0:04:21.9]} 10. Nxe4 {[%clk 0:04:45.1]} 10... Ng4 {[%clk 0:04:10.6]} 11. h3
{[%clk 0:04:42.2]} 11... Nf6 {[%clk 0:04:03.4]} 12. Nxf6+ {[%clk 0:04:41.4]}
12... Qxf6 {[%clk 0:03:59.7]} 13. Bg5 {[%clk 0:04:40.6]} 13... Qxf3 {[%clk
0:03:33.8]} 14. Qxf3 {[%clk 0:04:37.6]} 14... O-O {[%clk 0:03:21.1]} 15. Qh5
{[%clk 0:04:36.2]} 15... g6 {[%clk 0:03:14.1]} 16. Qh6 {[%clk 0:04:34.5]} 16...
Rfe8 {[%clk 0:03:08.6]} 17. Bf6 {[%clk 0:04:32.6]} 17... e5 {[%clk 0:02:40.7]}
18. Qg7# {[%clk 0:04:30]} 1-0

[Event "Live Chess"]
[Site "Chess.com"]
[Date "2024.06.01"]
[Round "-"]
[White "GwaryTek"]
[Black "PughmanChess"]
[Result "1-0"]
[WhiteElo "1920"]
[BlackElo "1378"]
[TimeControl "300"]
[EndTime "14:12:50 PDT"]
[Termination "GwaryTek won by checkmate"]

1. e4 {[%clk 0:04:56.5]} 1... c6 {[%clk 0:04:56.2]} 2. d4 {[%clk 0:04:54.6]}
2... d5 {[%clk 0:04:55.9]} 3. Nc3 {[%clk 0:04:53.1]} 3... dxe4 {[%clk
0:04:54.8]} 4. f3 {[%clk 0:04:52.2]} 4... exf3 {[%clk 0:04:52.9]} 5. Nxf3 {[%clk
0:04:52.1]} 5... Nf6 {[%clk 0:04:51.5]} 6. Bc4 {[%clk 0:04:51.6]} 6... Bg4
{[%clk 0:04:49.3]} 7. Ne5 {[%clk 0:04:50]} 7... Qc8 {[%clk 0:04:15.6]} 8. Bxf7+
{[%clk 0:04:39.9]} 8... Kd8 {[%clk 0:04:12.9]} 9. Nxg4 {[%clk 0:04:36.4]} 9...
Qxg4 {[%clk 0:04:05.9]} 10. Qxg4 {[%clk 0:04:33.8]} 10... Nxg4 {[%clk 0:04:05]}
11. O-O {[%clk 0:04:29.9]} 11... Nd7 {[%clk 0:03:59.9]} 12. Bf4 {[%clk
0:04:23.8]} 12... Ngf6 {[%clk 0:03:57.2]} 13. Rad1 {[%clk 0:04:14]} 13... g6
{[%clk 0:03:33.2]} 14. d5 {[%clk 0:04:10.1]} 14... c5 {[%clk 0:03:30]} 15. Nb5
{[%clk 0:03:44.8]} 15... a6 {[%clk 0:02:57.1]} 16. Nc7 {[%clk 0:03:37.5]} 16...
Ra7 {[%clk 0:02:49.7]} 17. Ne6+ {[%clk 0:03:25.4]} 17... Kc8 {[%clk 0:02:47.2]}
18. c4 {[%clk 0:03:21.5]} 18... Nh5 {[%clk 0:02:30.2]} 19. Be3 {[%clk
0:02:42.7]} 19... b6 {[%clk 0:02:28.1]} 20. g4 {[%clk 0:02:34.2]} 20... Nhf6
{[%clk 0:02:19.9]} 21. g5 {[%clk 0:02:22]} 21... Ng4 {[%clk 0:02:15]} 22. Bf4
{[%clk 0:02:14.5]} 22... Nde5 {[%clk 0:02:10.8]} 23. Bxe5 {[%clk 0:01:54.8]}
23... Nxe5 {[%clk 0:02:08.7]} 24. b3 {[%clk 0:01:53.5]} 24... Ng4 {[%clk
0:01:58.3]} 25. Rde1 {[%clk 0:01:31.8]} 25... h6 {[%clk 0:01:38.9]} 26. Bxg6
{[%clk 0:01:24.2]} 26... hxg5 {[%clk 0:01:36.4]} 27. Bf5 {[%clk 0:01:22.7]}
27... Nf6 {[%clk 0:01:34.8]} 28. Nxf8+ {[%clk 0:01:19.2]} 28... Kc7 {[%clk
0:01:29.2]} 29. Rxe7+ {[%clk 0:01:11.7]} 29... Kb8 {[%clk 0:01:27.9]} 30. Rxa7
{[%clk 0:01:08.4]} 30... Kxa7 {[%clk 0:01:26.7]} 31. Ng6 {[%clk 0:01:04.1]}
31... Re8 {[%clk 0:01:18.2]} 32. Be6 {[%clk 0:01:01.8]} 32... Ne4 {[%clk
0:01:09.4]} 33. Rf7+ {[%clk 0:00:59.7]} 33... Kb8 {[%clk 0:01:07.4]} 34. Ne5
{[%clk 0:00:57.7]} 34... Nc3 {[%clk 0:01:00.2]} 35. Nc6+ {[%clk 0:00:51.3]}
35... Ka8 {[%clk 0:00:58.5]} 36. Ra7# {[%clk 0:00:50.4]} 1-0

[Event "Live Chess"]
[Site "Chess.com"]
[Date "2024.06.01"]
[Round "-"]
[White "Mangoalo"]
[Black "Queensandpawns"]
[Result "0-1"]
[WhiteElo "1062"]
[BlackElo "2374"]
[TimeControl "300"]
[EndTime "14:12:51 PDT"]
[Termination "Queensandpawns won by checkmate"]

1. e4 {[%clk 0:04:56.9]} 1... d5 {[%clk 0:04:59.9]} 2. exd5 {[%clk 0:04:53]}
2... c6 {[%clk 0:04:59.8]} 3. Nc3 {[%clk 0:04:52.3]} 3... Nf6 {[%clk 0:04:56.9]}
4. dxc6 {[%clk 0:04:51.1]} 4... Nxc6 {[%clk 0:04:56.8]} 5. Bb5 {[%clk
0:04:48.7]} 5... e5 {[%clk 0:04:55.7]} 6. Bxc6+ {[%clk 0:04:47.5]} 6... bxc6
{[%clk 0:04:55.6]} 7. Nf3 {[%clk 0:04:46.5]} 7... Bc5 {[%clk 0:04:55.2]} 8. O-O
{[%clk 0:04:44.8]} 8... O-O {[%clk 0:04:54.6]} 9. Re1 {[%clk 0:04:44.3]} 9... e4
{[%clk 0:04:54]} 10. Nxe4 {[%clk 0:04:37.8]} 10... Nxe4 {[%clk 0:04:52.9]} 11.
Rxe4 {[%clk 0:04:37.7]} 11... Bf5 {[%clk 0:04:51.7]} 12. Re1 {[%clk 0:04:35.3]}
12... Re8 {[%clk 0:04:48.6]} 13. d4 {[%clk 0:04:28.7]} 13... Bd6 {[%clk
0:04:40.9]} 14. Bg5 {[%clk 0:04:24.6]} 14... Rxe1+ {[%clk 0:04:38.9]} 15. Qxe1
{[%clk 0:04:22]} 15... Qc7 {[%clk 0:04:38.5]} 16. Qe2 {[%clk 0:04:12.2]} 16...
Bg4 {[%clk 0:04:36.4]} 17. Re1 {[%clk 0:04:06.7]} 17... Bxh2+ {[%clk 0:04:26.8]}
18. Kf1 {[%clk 0:04:04.4]} 18... Bd6 {[%clk 0:04:25.4]} 19. Qe4 {[%clk
0:03:56.5]} 19... Be6 {[%clk 0:04:23.9]} 20. Ne5 {[%clk 0:03:54.9]} 20... h6
{[%clk 0:04:21.1]} 21. Bxh6 {[%clk 0:03:35]} 21... gxh6 {[%clk 0:04:15.9]} 22.
Re3 {[%clk 0:03:27.1]} 22... f5 {[%clk 0:04:03.9]} 23. Rg3+ {[%clk 0:03:20.9]}
23... Kh7 {[%clk 0:04:03]} 24. Qh4 {[%clk 0:03:14.7]} 24... Bxe5 {[%clk
0:03:59.1]} 25. dxe5 {[%clk 0:03:14.6]} 25... Qxe5 {[%clk 0:03:58.7]} 26. Qe7+
{[%clk 0:03:10.5]} 26... Kh8 {[%clk 0:03:56.8]} 27. Kg1 {[%clk 0:02:56.4]} 27...
Rg8 {[%clk 0:03:47.9]} 28. Rxg8+ {[%clk 0:02:42.1]} 28... Kxg8 {[%clk
0:03:46.5]} 29. Qh4 {[%clk 0:02:36.9]} 29... Qg7 {[%clk 0:03:30.6]} 30. g3
{[%clk 0:02:32.9]} 30... Bd5 {[%clk 0:03:27]} 31. Qd8+ {[%clk 0:02:27.1]} 31...
Kh7 {[%clk 0:03:26]} 32. b3 {[%clk 0:02:22.7]} 32... Qa1+ {[%clk 0:03:24.5]} 33.
Kh2 {[%clk 0:02:20.7]} 33... Qh1# {[%clk 0:03:24.4]} 0-1

[Event "Live Chess"]
[Site "Chess.com"]
[Date "2024.06.01"]
[Round "-"]
[White "Isambard_Thomas"]
[Black "peteopeteo"]
[Result "1-0"]
[WhiteElo "2165"]
[BlackElo "1581"]
[TimeControl "300"]
[EndTime "14:12:58 PDT"]
[Termination "Isambard_Thomas won on time"]

1. d4 {[%clk 0:04:59.4]} 1... d5 {[%clk 0:04:58.8]} 2. Nf3 {[%clk 0:04:59.3]}
2... Nf6 {[%clk 0:04:58.1]} 3. Bg5 {[%clk 0:04:59.2]} 3... Bf5 {[%clk
0:04:49.4]} 4. e3 {[%clk 0:04:57.8]} 4... e6 {[%clk 0:04:48.2]} 5. Nh4 {[%clk
0:04:55]} 5... Bg6 {[%clk 0:04:44.9]} 6. Nxg6 {[%clk 0:04:54.1]} 6... hxg6
{[%clk 0:04:44.8]} 7. Bd3 {[%clk 0:04:53.2]} 7... Be7 {[%clk 0:04:43.8]} 8. Nd2
{[%clk 0:04:51.8]} 8... Nbd7 {[%clk 0:04:42.8]} 9. Qe2 {[%clk 0:04:50.1]} 9...
a6 {[%clk 0:04:35.8]} 10. c3 {[%clk 0:04:49.1]} 10... c5 {[%clk 0:04:20.6]} 11.
O-O-O {[%clk 0:04:47.6]} 11... c4 {[%clk 0:04:19.4]} 12. Bc2 {[%clk 0:04:46.6]}
12... b5 {[%clk 0:04:12.7]} 13. h4 {[%clk 0:04:45.1]} 13... b4 {[%clk
0:04:02.9]} 14. Nb1 {[%clk 0:04:43.1]} 14... bxc3 {[%clk 0:03:56.7]} 15. Nxc3
{[%clk 0:04:41.1]} 15... Rb8 {[%clk 0:03:44.2]} 16. Ba4 {[%clk 0:04:19.9]} 16...
O-O {[%clk 0:03:30.4]} 17. h5 {[%clk 0:04:01.8]} 17... Ne4 {[%clk 0:03:22.7]}
18. Nxe4 {[%clk 0:03:50.8]} 18... dxe4 {[%clk 0:03:22.6]} 19. Bxe7 {[%clk
0:03:45.6]} 19... Qxe7 {[%clk 0:03:22.5]} 20. hxg6 {[%clk 0:03:39.9]} 20... fxg6
{[%clk 0:03:19.6]} 21. Bxd7 {[%clk 0:03:30.9]} 21... Qxd7 {[%clk 0:03:17.1]} 22.
Qc2 {[%clk 0:03:26.4]} 22... Qd6 {[%clk 0:03:09.3]} 23. Rd2 {[%clk 0:03:18]}
23... c3 {[%clk 0:02:48.9]} 24. bxc3 {[%clk 0:03:12.4]} 24... Qa3+ {[%clk
0:02:48.4]} 25. Kd1 {[%clk 0:03:08.8]} 25... Rfc8 {[%clk 0:02:43.4]} 26. Qxe4
{[%clk 0:03:02.1]} 26... Qd6 {[%clk 0:01:34.2]} 27. Qxg6 {[%clk 0:02:47.2]}
27... Rxc3 {[%clk 0:01:22.8]} 28. d5 {[%clk 0:02:42.8]} 28... Qd7 {[%clk
0:00:43.4]} 29. Qh7+ {[%clk 0:02:13.3]} 29... Kf7 {[%clk 0:00:38.8]} 30. Qh5+
{[%clk 0:02:08.7]} 30... Kg8 {[%clk 0:00:37]} 31. Qh8+ {[%clk 0:02:05.6]} 31...
Kf7 {[%clk 0:00:32.1]} 32. Qxb8 {[%clk 0:02:05.1]} 32... Qa4+ {[%clk 0:00:30]}
33. Ke2 {[%clk 0:02:03.1]} 33... Qc4+ {[%clk 0:00:28]} 34. Kf3 {[%clk
0:01:59.4]} 34... exd5 {[%clk 0:00:12.8]} 35. Qb7+ {[%clk 0:01:49.6]} 35... Kg8
{[%clk 0:00:07.8]} 36. Qxd5+ {[%clk 0:01:45.7]} 36... Qxd5+ {[%clk 0:00:07.2]}
37. Rxd5 {[%clk 0:01:45.6]} 37... Rc2 {[%clk 0:00:06.6]} 38. Rd8+ {[%clk
0:01:41.7]} 38... Kf7 {[%clk 0:00:05.7]} 39. a4 {[%clk 0:01:40.7]} 39... Rc4
{[%clk 0:00:04.6]} 40. Rd4 {[%clk 0:01:39.4]} 40... Rc5 {[%clk 0:00:03.5]} 41.
Rf4+ {[%clk 0:01:38]} 41... Kg8 {[%clk 0:00:01.9]} 42. Rd1 {[%clk 0:01:37.3]}
1-0

[Event "Live Chess"]
[Site "Chess.com"]
[Date "2024.06.01"]
[Round "-"]
[White "BostonStrangler"]
[Black "kingside_rook"]
[Result "1-0"]
[WhiteElo "2146"]
[BlackElo "1980"]
[TimeControl "300"]
[EndTime "14:13:01 PDT"]
[Termination "BostonStrangler won by checkmate"]

1. e4 {[%clk 0:04:57.4]} 1... e5 {[%clk 0:04:58.4]} 2. f4 {[%clk 0:04:54.4]}
2... exf4 {[%clk 0:04:56.3]} 3. Nf3 {[%clk 0:04:52.1]} 3... Be7 {[%clk
0:04:53.2]} 4. Bc4 {[%clk 0:04:45.5]} 4... Bh4+ {[%clk 0:04:51.8]} 5. g3 {[%clk
0:04:43.6]} 5... fxg3 {[%clk 0:04:50.9]} 6. O-O {[%clk 0:04:42.7]} 6... gxh2+
{[%clk 0:04:47.8]} 7. Kh1 {[%clk 0:04:41.8]} 7... Nh6 {[%clk 0:04:46.3]} 8. d4
{[%clk 0:04:37.3]} 8... d5 {[%clk 0:04:43.8]} 9. Bxd5 {[%clk 0:04:34.6]} 9... c6
{[%clk 0:04:41.7]} 10. Bb3 {[%clk 0:04:32.8]} 10... Bg4 {[%clk 0:04:40]} 11.
Bxh6 {[%clk 0:04:28.2]} 11... gxh6 {[%clk 0:04:39.2]} 12. Bxf7+ {[%clk
0:04:24.9]} 12... Ke7 {[%clk 0:04:32.1]} 13. Bb3 {[%clk 0:04:13.2]} 13... Rf8
{[%clk 0:04:27.6]} 14. Qd3 {[%clk 0:04:07.3]} 14... Rxf3 {[%clk 0:04:22]} 15.
Rxf3 {[%clk 0:04:05.5]} 15... Bxf3+ {[%clk 0:04:21.7]} 16. Qxf3 {[%clk
0:04:04.4]} 16... Qf8 {[%clk 0:04:20.2]} 17. Qh3 {[%clk 0:03:55]} 17... Bg5
{[%clk 0:04:15.5]} 18. Nc3 {[%clk 0:03:40.2]} 18... Nd7 {[%clk 0:04:12.7]} 19.
Rf1 {[%clk 0:03:23.5]} 19... Qg7 {[%clk 0:04:11.7]} 20. Qe6+ {[%clk 0:03:19.8]}
20... Kd8 {[%clk 0:04:08.3]} 21. Rf7 {[%clk 0:03:15.5]} 21... Qxd4 {[%clk
0:04:05.3]} 22. Kxh2 {[%clk 0:02:37]} 22... Nf6 {[%clk 0:03:56.1]} 23. Rf8+
{[%clk 0:02:26.5]} 23... Kc7 {[%clk 0:03:54.7]} 24. Nd5+ {[%clk 0:01:52.1]}
24... cxd5 {[%clk 0:03:47.8]} 25. Rf7+ {[%clk 0:01:49.8]} 25... Kd8 {[%clk
0:03:42.1]} 26. Qd6+ {[%clk 0:01:43.4]} 26... Ke8 {[%clk 0:03:37.9]} 27. Qe7#
{[%clk 0:01:42.2]} 1-0

[Event "Live Chess"]
[Site "Chess.com"]
[Date "2024.06.01"]
[Round "-"]
[White "IanCalvert2"]
[Black "ShanthamGrarks"]
[Result "1/2-1/2"]
[WhiteElo "1609"]
[BlackElo "1793"]
[TimeControl "300"]
[EndTime "14:13:02 PDT"]
[Termination "Game drawn - insufficient material"]

1. b3 {[%clk 0:04:56.6]} 1... e5 {[%clk 0:04:57.3]} 2. Bb2 {[%clk 0:04:55.5]}
2... d6 {[%clk 0:04:56.9]} 3. e3 {[%clk 0:04:53.8]} 3... Nf6 {[%clk 0:04:56.4]}
4. d4 {[%clk 0:04:52]} 4... exd4 {[%clk 0:04:54]} 5. Qxd4 {[%clk 0:04:50.9]}
5... Nc6 {[%clk 0:04:50.2]} 6. Bb5 {[%clk 0:04:48]} 6... Bd7 {[%clk 0:04:49.7]}
7. Bxc6 {[%clk 0:04:46.2]} 7... Bxc6 {[%clk 0:04:48.3]} 8. Nf3 {[%clk
0:04:45.1]} 8... Bxf3 {[%clk 0:04:47.3]} 9. gxf3 {[%clk 0:04:38.5]} 9... Be7
{[%clk 0:04:46.8]} 10. Nc3 {[%clk 0:04:36.2]} 10... c6 {[%clk 0:04:44.6]} 11.
Rg1 {[%clk 0:04:29.5]} 11... Rg8 {[%clk 0:04:32.4]} 12. O-O-O {[%clk 0:04:24.2]}
12... Qc7 {[%clk 0:04:21.8]} 13. Ne4 {[%clk 0:04:07.2]} 13... Nxe4 {[%clk
0:04:19.1]} 14. Qxe4 {[%clk 0:03:58.2]} 14... O-O-O {[%clk 0:04:12.3]} 15. Rxg7
{[%clk 0:03:45.7]} 15... Rxg7 {[%clk 0:04:09]} 16. Bxg7 {[%clk 0:03:42.9]} 16...
d5 {[%clk 0:04:06.6]} 17. Qxh7 {[%clk 0:03:36]} 17... Ba3+ {[%clk 0:04:03.2]}
18. Bb2 {[%clk 0:03:24.1]} 18... Bxb2+ {[%clk 0:04:00.9]} 19. Kxb2 {[%clk
0:03:20.2]} 19... Qe5+ {[%clk 0:04:00.5]} 20. Kb1 {[%clk 0:03:15]} 20... Rd7
{[%clk 0:03:54]} 21. f4 {[%clk 0:02:56.5]} 21... Qc3 {[%clk 0:03:49]} 22. Qd3
{[%clk 0:02:28.2]} 22... Qh8 {[%clk 0:03:46.3]} 23. Rh1 {[%clk 0:02:22]} 23...
Qh3 {[%clk 0:03:44.7]} 24. Qf1 {[%clk 0:02:18.8]} 24... Qf3 {[%clk 0:03:36.2]}
25. h4 {[%clk 0:02:13.6]} 25... d4 {[%clk 0:03:35.1]} 26. exd4 {[%clk
0:02:10.7]} 26... Rxd4 {[%clk 0:03:32.2]} 27. h5 {[%clk 0:02:09.4]} 27... Rd8
{[%clk 0:03:24.3]} 28. Qh3+ {[%clk 0:01:58.9]} 28... Qxh3 {[%clk 0:03:23.3]} 29.
Rxh3 {[%clk 0:01:57.2]} 29... Rh8 {[%clk 0:03:22.7]} 30. h6 {[%clk 0:01:55.1]}
30... Kd7 {[%clk 0:03:20.8]} 31. Kb2 {[%clk 0:01:38.3]} 31... Ke6 {[%clk
0:03:19.8]} 32. Kc3 {[%clk 0:01:36.6]} 32... Kf5 {[%clk 0:03:19.4]} 33. Kd4
{[%clk 0:01:21.5]} 33... Kxf4 {[%clk 0:03:17.4]} 34. Kc5 {[%clk 0:01:19.5]}
34... Ke5 {[%clk 0:03:15.2]} 35. Rh5+ {[%clk 0:01:14.4]} 35... f5 {[%clk
0:03:13.2]} 36. h7 {[%clk 0:01:09.2]} 36... Kf6 {[%clk 0:03:09.6]} 37. f4 {[%clk
0:01:01.4]} 37... Kg6 {[%clk 0:03:08.8]} 38. Rg5+ {[%clk 0:01:00.1]} 38... Kf6
{[%clk 0:03:08]} 39. Rh5 {[%clk 0:00:59.1]} 39... Kg6 {[%clk 0:03:07]} 40. Rg5+
{[%clk 0:00:58]} 40... Kh6 {[%clk 0:03:02.2]} 41. Rxf5 {[%clk 0:00:54.2]} 41...
Rxh7 {[%clk 0:03:01.6]} 42. Kd6 {[%clk 0:00:52.3]} 42... Kg6 {[%clk 0:02:59.9]}
43. Rf8 {[%clk 0:00:46.6]} 43... Rh2 {[%clk 0:02:55.9]} 44. Rb8 {[%clk
0:00:38.2]} 44... Rd2+ {[%clk 0:02:51.9]} 45. Kc7 {[%clk 0:00:35.7]} 45... Rxc2
{[%clk 0:02:50.8]} 46. Rxb7 {[%clk 0:00:34.1]} 46... Rxa2 {[%clk 0:02:34.9]} 47.
Kxc6 {[%clk 0:00:31.4]} 47... a5 {[%clk 0:02:34.5]} 48. Kb5 {[%clk 0:00:28.3]}
48... Ra3 {[%clk 0:02:26.4]} 49. Kc4 {[%clk 0:00:21.3]} 49... a4 {[%clk
0:02:22.2]} 50. bxa4 {[%clk 0:00:19.3]} 50... Rxa4+ {[%clk 0:02:20.7]} 51. Rb4
{[%clk 0:00:15.8]} 51... Rxb4+ {[%clk 0:02:19.2]} 52. Kxb4 {[%clk 0:00:14.4]}
52... Kf5 {[%clk 0:02:19.1]} 53. Kc5 {[%clk 0:00:12.9]} 53... Kxf4 {[%clk
0:02:19]} 1/2-1/2

[Event "Live Chess"]
[Site "Chess.com"]
[Date "2024.06.01"]
[Round "-"]
[White "AndrewBak1"]
[Black "wadsy27"]
[Result "0-1"]
[WhiteElo "1853"]
[BlackElo "2537"]
[TimeControl "300"]
[EndTime "14:13:03 PDT"]
[Termination "wadsy27 won by resignation"]

1. e4 {[%clk 0:04:57.4]} 1... c5 {[%clk 0:04:58]} 2. Nf3 {[%clk 0:04:56.9]} 2...
e6 {[%clk 0:04:56]} 3. d4 {[%clk 0:04:56.8]} 3... cxd4 {[%clk 0:04:55.4]} 4.
Nxd4 {[%clk 0:04:56.7]} 4... Nc6 {[%clk 0:04:54.8]} 5. c4 {[%clk 0:04:54.1]}
5... Nf6 {[%clk 0:04:52.9]} 6. Nc3 {[%clk 0:04:51.9]} 6... Bb4 {[%clk
0:04:52.2]} 7. Nxc6 {[%clk 0:04:49.2]} 7... bxc6 {[%clk 0:04:52.1]} 8. Bd3
{[%clk 0:04:47.7]} 8... e5 {[%clk 0:04:51.6]} 9. O-O {[%clk 0:04:45.9]} 9... O-O
{[%clk 0:04:51.1]} 10. Ne2 {[%clk 0:04:43.3]} 10... Bc5 {[%clk 0:04:48.2]} 11.
Ng3 {[%clk 0:04:41]} 11... d6 {[%clk 0:04:46.1]} 12. Be3 {[%clk 0:04:36.7]}
12... Bxe3 {[%clk 0:04:26.2]} 13. fxe3 {[%clk 0:04:36.6]} 13... Qb6 {[%clk
0:04:25.8]} 14. Qe2 {[%clk 0:04:32.5]} 14... Be6 {[%clk 0:04:04.4]} 15. b3
{[%clk 0:04:27.8]} 15... Nd7 {[%clk 0:04:01.8]} 16. Nf5 {[%clk 0:04:24.6]} 16...
Bxf5 {[%clk 0:04:00.1]} 17. exf5 {[%clk 0:04:21.7]} 17... f6 {[%clk 0:03:56.3]}
18. Kh1 {[%clk 0:04:18.7]} 18... Nc5 {[%clk 0:03:55.2]} 19. Rf3 {[%clk
0:04:13.2]} 19... e4 {[%clk 0:03:53.4]} 20. Rh3 {[%clk 0:04:10.2]} 20... Nxd3
{[%clk 0:03:50.7]} 21. Qh5 {[%clk 0:04:08]} 21... Nf2+ {[%clk 0:03:49.8]} 0-1

[Event "Live Chess"]
[Site "Chess.com"]
[Date "2024.06.01"]
[Round "-"]
[White "crais6"]
[Black "Frankie_Badacsonyi"]
[Result "0-1"]
[WhiteElo "1619"]
[BlackElo "2440"]
[TimeControl "300"]
[EndTime "14:13:26 PDT"]
[Termination "Frankie_Badacsonyi won by resignation"]

1. d4 {[%clk 0:04:55]} 1... d5 {[%clk 0:04:59.1]} 2. Nf3 {[%clk 0:04:47.1]} 2...
Nf6 {[%clk 0:04:58.2]} 3. e3 {[%clk 0:04:45.9]} 3... Bf5 {[%clk 0:04:56.1]} 4.
Bd3 {[%clk 0:04:42]} 4... Bxd3 {[%clk 0:04:55]} 5. cxd3 {[%clk 0:04:40.5]} 5...
e6 {[%clk 0:04:54.9]} 6. Nc3 {[%clk 0:04:37.1]} 6... c5 {[%clk 0:04:54.2]} 7.
dxc5 {[%clk 0:04:34.3]} 7... Bxc5 {[%clk 0:04:54.1]} 8. d4 {[%clk 0:04:32.8]}
8... Bb4 {[%clk 0:04:53.5]} 9. Bd2 {[%clk 0:04:31.3]} 9... O-O {[%clk
0:04:52.3]} 10. O-O {[%clk 0:04:29.6]} 10... Nc6 {[%clk 0:04:51.8]} 11. Ne2
{[%clk 0:04:23.1]} 11... Bd6 {[%clk 0:04:50.8]} 12. a3 {[%clk 0:04:17.1]} 12...
a6 {[%clk 0:04:49.8]} 13. Rc1 {[%clk 0:04:15.9]} 13... Rc8 {[%clk 0:04:48.9]}
14. Qb3 {[%clk 0:03:59.5]} 14... Qe7 {[%clk 0:04:46.4]} 15. Rfe1 {[%clk
0:03:52.5]} 15... Ne4 {[%clk 0:04:45.6]} 16. Ng3 {[%clk 0:03:43.4]} 16... f5
{[%clk 0:04:44.2]} 17. Bc3 {[%clk 0:03:25.8]} 17... Kh8 {[%clk 0:04:17.9]} 18.
Red1 {[%clk 0:03:16.9]} 18... g5 {[%clk 0:04:08.9]} 19. Ne5 {[%clk 0:03:13.9]}
19... Bxe5 {[%clk 0:04:00.5]} 20. dxe5 {[%clk 0:03:11]} 20... Nxg3 {[%clk
0:03:59.6]} 21. hxg3 {[%clk 0:03:06.6]} 21... h5 {[%clk 0:03:58.6]} 22. Bd4
{[%clk 0:02:50.3]} 22... Rg8 {[%clk 0:03:45.7]} 23. Bc5 {[%clk 0:02:45.4]} 23...
Qf7 {[%clk 0:03:44.7]} 24. Bd6 {[%clk 0:02:41.6]} 24... h4 {[%clk 0:03:43.5]}
25. g4 {[%clk 0:02:36.3]} 25... fxg4 {[%clk 0:03:40.7]} 26. e4 {[%clk
0:02:34.3]} 26... d4 {[%clk 0:03:38]} 27. Qd3 {[%clk 0:02:21.4]} 27... Rg7
{[%clk 0:03:27.2]} 28. Rc4 {[%clk 0:02:06.4]} 28... Rh7 {[%clk 0:03:23.2]} 29.
b4 {[%clk 0:02:01.3]} 29... g3 {[%clk 0:03:09.1]} 30. fxg3 {[%clk 0:01:55]}
30... hxg3 {[%clk 0:03:07.8]} 31. Qxg3 {[%clk 0:01:52.1]} 31... Qh5 {[%clk
0:03:06.9]} 32. Rf1 {[%clk 0:01:45.8]} 32... Qh1+ {[%clk 0:03:04.4]} 33. Kf2
{[%clk 0:01:44.2]} 33... Rf7+ {[%clk 0:03:03.6]} 34. Ke2 {[%clk 0:01:41]} 34...
Qxf1+ {[%clk 0:03:02.2]} 35. Kd2 {[%clk 0:01:39]} 35... Rf2+ {[%clk 0:03:01]}
0-1